bitfinex/quotes_SOLUSD_20260113
["timestamp","ask_amount","ask_price","bid_price","bid_amount"]
[1768324939041,3.50539293,142.79,142.75,7.67891542]
[1768324939348,4.17519779,142.79,142.75,7.67891542]
[1768324940342,0.66980486,142.79,142.75,7.67891542]
[1768324940648,11.20869259,142.79,142.75,0.67401343]
[1768324940822,0.66980486,142.78,142.75,0.67401343]
[1768324941138,4.2051978,142.78,142.75,7.67924818]
[1768324941338,4.2051978,142.79,142.75,7.67924818]
[1768324941537,7.67281388,142.8,142.76,0.67401343]
[1768324941840,3.53539294,142.79,142.76,0.67401343]
[1768324942037,4.2051978,142.79,142.76,0.67401343]
[1768324942934,11.20850957,142.79,142.75,7.67924818]
[1768324943635,4.2051978,142.78,142.73,7.68003993]
[1768324943843,4.2051978,142.78,142.72,3.53539294]
[1768324943844,0.66980486,142.76,142.72,7.68054353]
[1768324944248,4.2051978,142.76,142.72,7.68054353]
[1768324944538,4.2051978,142.75,142.71,70.48105378]
[1768324944765,4.2051978,142.75,142.71,0.67401343]
[1768324944766,11.21049803,142.75,142.71,0.67401343]
[1768324944940,4.2051978,142.74,142.71,0.67401343]
[1768324945147,4.17519778,142.74,142.71,0.67401343]
[1768324945444,3.53539294,142.74,142.71,7.6812281]
[1768324945931,0.66980486,142.73,142.71,7.00721467]
[1768324946334,3.53539294,142.74,142.72,0.67401343]
[1768324946960,3.53539294,142.75,142.72,0.67401343]
[1768324947256,11.21017438,142.76,142.72,0.67401343]
[1768324948126,4.2051978,142.75,142.72,0.67401343]
[1768324949139,4.2051978,142.75,142.71,7.68088269]
[1768324949644,0.66980486,142.75,142.71,7.68088269]
[1768324950150,3.53539294,142.74,142.71,7.68088269]
[1768324951460,2.26116667,142.74,142.71,7.68088269]
[1768324952246,0.66980486,142.75,142.71,7.68088269]
[1768324952526,2.93097153,142.77,142.72,0.67401343]
[1768324952853,0.66980486,142.75,142.71,25.19892627]
[1768324953151,2.26116667,142.76,142.72,0.67401343]
[1768324953330,2.93097153,142.76,142.72,0.67401343]
[1768324953530,2.93097153,142.74,142.71,69.80686926]
[1768324954458,2.93097153,142.74,142.71,70.48088269]
[1768324954658,0.66980486,142.74,142.71,70.48088269]
[1768324954957,2.93097153,142.74,142.71,70.48088269]
[1768324956154,0.66980486,142.74,142.71,70.48088269]
[1768324958552,2.93097153,142.74,142.71,62.8]
[1768324959245,2.93097153,142.74,142.71,7.00717816]
[1768324959449,0.66980486,142.74,142.71,7.00717816]
[1768324959776,0.66980486,142.74,142.71,7.67820274]
[1768324959949,7.00378204,142.78,142.72,0.67102458]
[1768324960257,2.26116667,142.8,142.75,0.67102458]
[1768324960861,2.26116667,142.79,142.74,0.67102458]
[1768324961064,2.26116667,142.79,142.73,40.23401566]
[1768324962340,0.66932007,142.78,142.73,40.23401566]
[1768324962545,0.66932007,142.78,142.74,2.93219125]
[1768324963446,0.66932007,142.78,142.75,7.00525394]
[1768324964567,2.93048674,142.8,142.75,7.67627852]
[1768324964766,2.93048674,142.8,142.76,0.67102458]
[1768324965769,2.93048674,142.8,142.76,7.67565677]
[1768324966467,2.26116667,142.79,142.76,7.67565677]
[1768324966967,2.26116667,142.8,142.77,0.67102458]
[1768324967972,2.26116667,142.8,142.77,7.67513522]
[1768324968659,2.93048674,142.81,142.77,7.67513522]
[1768324970268,2.14623978,142.82,142.78,0.67102458]
[1768324970953,4.40740645,142.82,142.78,0.67102458]
[1768324972068,2.14623978,142.82,142.78,0.67102458]
[1768324972971,2.14623978,142.82,142.79,7.67431612]
[1768324975377,2.14623978,142.82,142.8,0.67102458]
[1768324975573,1e-08,142.82,142.79,26.77268707]
[1768324975758,1e-08,142.82,142.79,24.5115204]
[1768324976274,1e-08,142.82,142.8,0.67102458]
[1768324977374,1e-08,142.82,142.81,0.67102458]
[1768324977572,2.5043736,142.85,142.81,0.67102458]
[1768324978456,2.26116667,142.85,142.81,0.67102458]
[1768324979673,7.19907587,142.88,142.84,0.67102458]
[1768324979971,2.26116667,142.87,142.82,0.67102458]
[1768324980976,2.26116667,142.87,142.83,7.67235483]
[1768324981582,2.26116667,142.86,142.83,0.67102458]
[1768324981779,2.26116667,142.85,142.82,7.67264744]
[1768324982475,2.93048674,142.86,142.82,7.67264744]
[1768324982777,9.93037734,142.86,142.82,7.67264744]
[1768324982965,0.66932007,142.86,142.82,7.67264744]
[1768324983275,12.78,142.87,142.83,0.67102458]
[1768324983477,10.12973627,142.88,142.83,0.67102458]
[1768324983974,20.6285696,142.88,142.83,0.67102458]
[1768324984181,0.2,142.88,142.84,0.67102458]
[1768324984563,0.2,142.88,142.85,0.67102458]
[1768324985786,0.66556756,142.87,142.83,25.16028062]
[1768324985964,0.66556756,142.87,142.83,9.91812166]
[1768324986178,0.66556756,142.87,142.83,7.00096843]
[1768324986379,0.66188973,142.85,142.8,62.8]
[1768324986580,2.26116667,142.85,142.81,7.65827427]
[1768324986787,12.76,142.86,142.81,7.65827427]
[1768324987078,2.26116667,142.85,142.81,7.65827427]
[1768324987284,2.26116667,142.85,142.81,0.65598656]
[1768324987787,2.26116667,142.84,142.81,0.65598656]
[1768324988092,9.26170043,142.85,142.81,0.65598656]
[1768324988288,19.76003844,142.86,142.82,0.65598656]
[1768324988594,9.36020511,142.86,142.82,0.65598656]
[1768324988972,22.12020511,142.86,142.82,0.65598656]
[1768324989289,2.26116667,142.85,142.82,0.65598656]
[1768324990292,19.85903844,142.86,142.82,0.65598656]
[1768324990590,22.12020511,142.86,142.82,0.65598656]
[1768324990894,9.36020511,142.86,142.82,0.65598656]
[1768324991091,22.12020511,142.86,142.82,0.65598656]
[1768324991686,2.26116667,142.85,142.82,0.65598656]
[1768324991990,22.12020511,142.86,142.82,0.65598656]
[1768324992697,2.46458206,142.85,142.81,0.65598656]
[1768324993893,2.46458206,142.85,142.81,7.65825071]
[1768324994071,2.26116667,142.85,142.82,0.65598656]
[1768324995291,19.96450854,142.86,142.82,0.65598656]
[1768324995496,2.26116667,142.85,142.82,0.65598656]
[1768324996671,19.96450854,142.86,142.82,0.65598656]
[1768324997003,2.26116667,142.85,142.82,0.65598656]
[1768324997593,0.20341539,142.84,142.81,7.00226415]
[1768324997792,0.2044701,142.85,142.82,7.00164584]
[1768324998566,15.02116667,142.86,142.83,0.67651367]
[1768324999174,9.4600772,142.88,142.84,0.67651367]
[1768324999373,22.42349259,142.88,142.84,0.67651367]
[1768324999697,2.36121083,142.87,142.83,0.67651367]
[1768324999881,2.3622342,142.85,142.81,0.67651367]
[1768325000084,2.33223421,142.85,142.81,0.67651367]
[1768325000577,15.09223421,142.85,142.81,0.67651367]
[1768325001193,0.2,142.91,142.88,0.67651367]
[1768325001401,0.05467441,142.92,142.89,2.26116667]
[1768325001605,0.77077332,142.94,142.88,2.26116667]
[1768325001906,2.64222505,142.93,142.87,2.26116667]
[1768325002081,0.38105838,142.93,142.87,2.26116667]
[1768325002283,0.38105838,142.93,142.88,2.26116667]
[1768325002680,0.38105838,142.93,142.87,2.26116667]
[1768325003112,0.66787617,142.92,142.88,6.99888017]
[1768325003489,0.66787617,142.92,142.88,9.26004684]
[1768325003784,0.66787617,142.92,142.88,7.67539384]
[1768325004005,0.66787617,142.92,142.87,9.26035528]
[1768325004206,0.66787617,142.93,142.88,2.93768034]
[1768325004389,15.50222505,142.94,142.89,0.67651367]
[1768325004588,22.49838029,142.94,142.89,0.67651367]
[1768325004914,0.66787617,142.93,142.89,0.67651367]
[1768325005317,0.66787617,142.93,142.89,7.67478456]
[1768325006811,20.52692856,142.94,142.9,7.67440663]
[1768325006988,20.52692856,142.94,142.9,0.67651367]
[1768325007184,0.38105838,142.93,142.89,0.67651367]
[1768325007604,12.76,142.92,142.89,0.67651367]
[1768325009008,0.67077332,142.93,142.89,9.25941386]
[1768325009189,13.14105838,142.92,142.89,9.25941386]
[1768325009611,0.77077332,142.94,142.89,7.67476086]
[1768325009823,13.14105838,142.93,142.9,2.26116667]
[1768325009990,13.14105838,142.93,142.91,0.67651367]
[1768325009991,12.76,142.93,142.91,0.67651367]
[1768325010313,0.1,142.94,142.9,2.93768034]
[1768325010314,0.48105838,142.94,142.9,2.93768034]
[1768325010521,12.76,142.93,142.9,2.93768034]
[1768325011017,13.42787617,142.93,142.9,9.2589412]
[1768325011190,12.76,142.93,142.9,9.93545487]
[1768325011395,12.76,142.93,142.9,11.19714332]
[1768325014404,12.76,142.93,142.9,7.6742882]
[1768325014612,12.76,142.93,142.9,11.19714332]
[1768325016415,13.14105838,142.93,142.89,4.18412762]
[1768325016628,0.66787617,142.92,142.88,70.45966728]
[1768325016801,0.66787617,142.92,142.88,11.1825224]
[1768325017205,0.38673766,142.89,142.84,10.52339174]
[1768325017522,12.76,142.88,142.85,0.6612725]
[1768325017706,12.76,142.88,142.85,7.66159145]
[1768325017707,12.395,142.88,142.85,7.66159145]
[1768325018615,9.11,142.88,142.85,7.66159145]
[1768325019228,12.63285512,142.88,142.85,7.66159145]
[1768325019911,13.2951088,142.88,142.85,0.6612725]
[1768325020222,3.52285512,142.87,142.84,0.6612725]
[1768325020800,3.52285512,142.87,142.84,7.66204044]
[1768325021298,13.2951088,142.88,142.84,7.66204044]
[1768325021905,9.77225368,142.88,142.84,7.66204044]
[1768325022115,13.2951088,142.88,142.84,7.66204044]
[1768325022624,0.68809741,142.9,142.85,0.6612725]
[1768325022813,12.76,142.89,142.85,0.6612725]
[1768325023212,16.28285512,142.89,142.85,0.6612725]
[1768325023414,4.21095253,142.88,142.84,0.6612725]
[1768325023816,0.68809741,142.88,142.84,0.6612725]
[1768325024012,3.52285512,142.88,142.84,0.6612725]
[1768325024416,24.49134557,142.91,142.83,28.027511]
[1768325024417,7.09597987,142.94,142.87,3.52285512]
[1768325024719,7.09597987,142.94,142.9,0.6612725]
[1768325024720,0.1,142.94,142.9,0.6612725]
[1768325025030,0.46711701,142.94,142.9,0.6612725]
[1768325025220,0.46711701,142.94,142.89,3.52285512]
[1768325025221,0.68167813,142.93,142.89,3.52285512]
[1768325025419,0.68167813,142.93,142.88,4.18412762]
[1768325026324,0.68167813,142.93,142.89,10.52124549]
[1768325026727,3.52285512,142.92,142.88,7.65984418]
[1768325026908,3.52285512,142.92,142.89,0.6612725]
[1768325027731,3.88676265,142.92,142.88,0.6612725]
[1768325028135,0.36390753,142.92,142.88,0.6612725]
[1768325028435,7.36087883,142.92,142.88,0.6612725]
[1768325029029,20.12053228,142.93,142.89,0.6612725]
[1768325029234,13.12390753,142.93,142.89,4.18412762]
[1768325029433,12.76,142.93,142.9,0.6612725]
[1768325029931,19.85614333,142.94,142.9,0.6612725]
[1768325030139,20.22005086,142.94,142.9,0.6612725]
[1768325031220,23.74290598,142.94,142.9,0.6612725]
[1768325035315,20.22005086,142.94,142.9,0.6612725]
[1768325036240,12.86,142.94,142.91,0.6612725]
[1768325036415,0.1,142.94,142.9,0.6612725]
[1768325036621,11.3004806,142.94,142.9,0.6612725]
[1768325038321,7.77762548,142.94,142.9,0.6612725]
[1768325038520,11.3004806,142.94,142.9,0.6612725]
[1768325040141,7.77762548,142.94,142.9,0.6612725]
[1768325040335,11.3004806,142.94,142.9,0.6612725]
[1768325040638,10.98271,142.94,142.9,0.6612725]
[1768325040840,0.68485551,142.93,142.87,24.69272988]
[1768325041221,0.68485551,142.93,142.89,3.52285512]
[1768325042119,0.68809741,142.92,142.88,6.99888017]
[1768325042329,0.68809741,142.91,142.86,3.52285512]
[1768325042734,0.68809741,142.91,142.87,0.6612725]
[1768325043742,0.68809741,142.91,142.87,7.66063509]
[1768325046445,0.68809741,142.91,142.88,0.68300562]
[1768325047121,0.68809741,142.91,142.87,7.68236821]
[1768325047929,0.68809741,142.91,142.88,0.68300562]
[1768325048546,0.68809741,142.91,142.87,11.20522333]
[1768325049242,0.67312841,142.9,142.87,7.68236821]
[1768325049627,0.67312841,142.91,142.87,7.68236821]
[1768325050229,13.43312841,142.92,142.89,0.68300562]
[1768325051042,13.43312841,142.92,142.89,7.68114714]
[1768325053032,13.43312841,142.92,142.89,6.99814152]
[1768325053861,13.43312841,142.92,142.86,15.0]
[1768325053862,0.67312841,142.9,142.86,0.68300562]
[1768325054946,0.67312841,142.9,142.87,6.99907856]
[1768325056158,0.68126874,142.91,142.88,0.70833184]
[1768325057433,0.68126874,142.91,142.89,6.99839037]
[1768325059652,13.44126874,142.92,142.89,7.70672221]
[1768325061252,13.44126874,142.92,142.89,6.99839037]
[1768325063058,0.68126874,142.91,142.88,7.70702096]
[1768325063239,0.68126874,142.91,142.87,6.99909885]
[1768325063437,0.68126874,142.9,142.87,6.99909885]
[1768325063859,0.68126874,142.87,142.83,7.00116884]
[1768325064041,0.68126874,142.85,142.81,0.70833184]
[1768325064235,0.68126874,142.85,142.82,7.00162598]
[1768325064442,0.68126874,142.83,142.8,7.00244957]
[1768325064659,3.52285512,142.85,142.81,7.00224346]
[1768325064954,3.52285512,142.85,142.81,7.7105753]
[1768325065331,3.52285512,142.85,142.8,7.71113296]
[1768325065952,3.52285512,142.85,142.8,11.23398808]
[1768325066347,23.28302129,142.86,142.81,0.70833184]
[1768325066547,0.68126874,142.85,142.81,0.70833184]
[1768325066846,0.68126874,142.87,142.82,0.70833184]
[1768325067164,0.68126874,142.89,142.85,3.52285512]
[1768325067462,13.44126874,142.89,142.86,6.99986]
[1768325067857,13.44126874,142.89,142.85,7.70850828]
[1768325068832,0.68126874,142.88,142.84,3.52285512]
[1768325069036,0.68126874,142.87,142.84,7.00063596]
[1768325071368,13.44126874,142.89,142.84,0.70833184]
[1768325071548,15.69787877,142.89,142.84,0.70833184]
[1768325071746,12.76,142.89,142.85,0.70833184]
[1768325072462,12.76,142.89,142.86,0.70833184]
[1768325073167,0.1,142.94,142.9,0.70833184]
[1768325073337,0.78126874,142.94,142.91,6.99741095]
[1768325073537,22.0116556,142.96,142.91,6.99741095]
[1768325073756,22.0116556,142.96,142.92,0.70833184]
[1768325075248,12.76,142.96,142.93,0.71779376]
[1768325075647,7.19461404,142.97,142.92,6.99683312]
[1768325075849,1e-08,143.02,142.97,0.71779376]
[1768325076069,0.37520228,143.02,142.97,2.97440379]
[1768325076271,1e-08,143.02,142.98,0.71779376]
[1768325076574,1e-08,143.04,143.03,0.71779376]
[1768325076749,1e-08,143.05,143.03,2.25661003]
[1768325076955,12.86,143.09,143.04,2.25661003]
[1768325077274,0.1,143.09,143.06,0.71779376]
[1768325077447,1e-08,143.09,143.07,0.71779376]
[1768325078279,1e-08,143.09,143.05,0.71779376]
[1768325078451,6.04535982,143.08,143.03,0.71779376]
[1768325079273,0.68987049,143.07,143.03,0.71779376]
[1768325079471,0.68987049,143.07,143.04,6.99094722]
[1768325079979,0.6898705,143.09,143.04,7.70874098]
[1768325080883,6.04535982,143.08,143.03,6.99139456]
[1768325081876,6.04535982,143.08,143.03,7.70918832]
[1768325083279,0.68987049,143.07,143.03,7.70918832]
[1768325083566,0.68987049,143.05,143.02,6.99167657]
[1768325085171,0.68987049,143.05,143.01,7.71015718]
[1768325086253,5.68049708,143.07,143.01,29.82914776]
[1768325086453,5.68049708,143.07,143.03,0.71779376]
[1768325086765,18.11548933,143.08,143.03,0.71779376]
[1768325087658,25.10479233,143.08,143.03,7.70921716]
[1768325087854,18.11548933,143.08,143.03,7.70921716]
[1768325088468,18.80535982,143.08,143.03,7.70921716]
[1768325090173,5.35548933,143.05,143.0,0.71779376]
[1768325090366,5.35548933,143.04,143.01,6.9921858]
[1768325090672,5.35548933,143.04,143.01,7.70997956]
[1768325091990,6.03975556,143.04,143.0,0.71779376]
[1768325092162,6.03975556,143.04,143.01,6.99239679]
[1768325092366,7.68008923,143.06,143.01,6.99239679]
[1768325092572,7.68008923,143.06,143.01,7.71019055]
[1768325092866,0.4068418,143.05,143.01,7.71019055]
[1768325093077,5.76233113,143.05,143.01,7.71019055]
[1768325095372,5.35548933,143.06,143.02,0.71779376]
[1768325095678,5.35548933,143.07,143.02,0.71779376]
[1768325096464,5.35548933,143.07,143.03,7.70933399]
[1768325097091,6.04252953,143.07,143.03,7.70933399]
[1768325097392,2.93775938,143.07,143.03,7.70933399]
[1768325097894,2.66036297,143.06,143.02,7.70965914]
[1768325098190,2.25071918,143.05,143.02,7.70965914]
[1768325098380,2.66036297,143.06,143.02,7.70965914]
[1768325098781,2.93226665,143.03,142.97,0.71779376]
[1768325098993,2.66843879,143.0,142.96,7.71247528]
[1768325099292,2.25071918,142.97,142.94,0.71779376]
[1768325099601,2.25071918,142.96,142.94,0.71779376]
[1768325099773,2.25071918,142.96,142.91,17.4929259]
[1768325099975,2.25071918,142.96,142.93,6.9961321]
[1768325100491,2.25071918,142.94,142.93,0.71779376]
[1768325100790,2.25071918,142.95,142.89,34.74642316]
[1768325101086,2.25071918,142.94,142.89,32.49570398]
[1768325101260,2.25071918,142.94,142.89,17.49570398]
[1768325102482,0.68987049,142.95,142.89,24.49409435]
[1768325102687,2.25071918,142.94,142.9,0.71779376]
[1768325103593,2.25071918,142.94,142.91,6.99741095]
[1768325103971,2.25071918,142.94,142.9,7.71557545]
[1768325104375,2.25071918,142.93,142.9,7.71557545]
[1768325104790,2.94058967,142.94,142.9,7.71557545]
[1768325105115,0.6958976,142.91,142.86,0.71832095]
[1768325105389,24.48586727,142.94,142.88,7.71713436]
[1768325105567,2.25071918,142.92,142.88,7.71713436]
[1768325106094,30.2278584,142.96,142.88,6.99872952]
[1768325106095,6.99545295,142.95,142.88,6.99872952]
[1768325106261,6.99545295,142.95,142.89,0.71832095]
[1768325106466,2.25071918,142.94,142.89,0.71832095]
[1768325106880,19.75545295,142.95,142.89,0.71832095]
[1768325107084,12.76,142.95,142.9,0.71832095]
[1768325107281,2.94661678,142.96,142.91,0.71832095]
[1768325107774,2.94661678,142.96,142.91,7.71536584]
[1768325107979,0.6958976,142.95,142.91,7.71536584]
[1768325108898,9.24577,142.96,142.89,0.71832095]
[1768325108899,0.6958976,142.93,142.89,0.71832095]
[1768325109076,2.94661678,142.93,142.89,0.71832095]
[1768325109581,2.94661678,142.93,142.89,7.71639872]
[1768325110092,2.94661678,142.92,142.89,6.99807777]
[1768325110268,2.94661678,142.91,142.87,0.71832095]
[1768325110475,2.25071918,142.9,142.87,7.71736348]
[1768325110771,2.25071918,142.9,142.84,15.01071918]
[1768325110772,12.76,142.9,142.84,7.0006716]
[1768325110995,2.25071918,142.86,142.83,7.20117579]
[1768325111295,2.25071918,142.86,142.83,7.91949674]
[1768325111474,2.25071918,142.86,142.84,0.71832095]
[1768325111880,2.22071919,142.86,142.83,7.20117579]
[1768325112090,2.22071919,142.86,142.83,7.20127579]
[1768325112291,2.22071919,142.86,142.83,7.91959674]
[1768325112489,2.25071918,142.86,142.84,0.71832095]
[1768325112692,2.25071918,142.86,142.83,7.20127579]
[1768325112998,2.25071918,142.85,142.83,0.91832095]
[1768325113196,2.25071918,142.85,142.83,0.2]
[1768325113392,5.37547048,142.84,142.83,0.2]
[1768325113700,13.45286715,142.86,142.83,0.2]
[1768325113701,5.7713228,142.85,142.83,0.2]
[1768325114602,5.37547048,142.83,142.79,0.71832095]
[1768325114819,5.37547048,142.82,142.79,0.71832095]
[1768325115103,5.37547048,142.81,142.79,0.71832095]
[1768325115603,5.37547048,142.82,142.79,7.72156509]
[1768325116103,0.19485217,142.84,142.8,0.66358987]
[1768325116406,5.37547048,142.83,142.8,0.66358987]
[1768325116902,5.54934587,142.83,142.79,7.00324414]
[1768325117109,5.37547048,142.83,142.79,7.66683401]
[1768325117697,5.37547048,142.82,142.79,7.66683401]
[1768325119596,6.09255675,142.83,142.79,7.66683401]
[1768325120098,5.37547048,142.82,142.79,7.66683401]
[1768325120694,5.37547048,142.82,142.79,0.66358987]
[1768325120902,5.37547048,142.81,142.79,0.66358987]
[1768325121206,5.37547048,142.82,142.79,7.00328367]
[1768325121406,0.71708627,142.83,142.79,7.00328367]
[1768325121714,5.37547048,142.82,142.79,7.00328367]
[1768325122401,6.09255675,142.83,142.79,7.66687354]
[1768325123510,5.37547048,142.82,142.79,7.66687354]
[1768325123898,5.37547048,142.82,142.79,7.00328367]
[1768325124212,5.55472366,142.8,142.76,0.66358987]
[1768325124411,5.37547048,142.79,142.77,7.00426862]
[1768325124619,5.37547048,142.8,142.77,7.66785849]
[1768325126117,0.16838841,142.81,142.77,7.66785849]
[1768325126118,5.37547048,142.79,142.77,7.66785849]
[1768325127216,5.37547048,142.8,142.77,7.66785849]
[1768325127817,12.76,142.82,142.77,7.66785849]
[1768325128020,5.37547048,142.81,142.77,7.66785849]
[1768325128206,0.71708627,142.81,142.77,7.66785849]
[1768325128398,6.09255675,142.81,142.77,7.66785849]
[1768325130514,5.37547048,142.8,142.77,7.66785849]
[1768325131020,5.34547045,142.8,142.77,7.66785849]
[1768325131324,9.45414484,142.79,142.75,0.66358987]
[1768325132210,9.45414484,142.79,142.76,7.00467915]
[1768325132406,8.74249068,142.78,142.75,7.66865438]
[1768325133402,3.53105792,142.78,142.75,7.66865438]
[1768325133602,3.53105792,142.79,142.75,25.18178923]
[1768325133802,0.72262867,142.8,142.75,25.18178923]
[1768325134114,3.53105792,142.78,142.75,7.66865438]
[1768325134316,3.53105792,142.78,142.76,0.66358987]
[1768325134928,3.53105792,142.77,142.74,7.72580999]
[1768325135431,3.50105793,142.77,142.74,7.72580999]
[1768325136522,3.50105793,142.77,142.75,7.72532041]
[1768325136842,1.56170346,142.77,142.75,7.72532041]
[1768325137642,1.53170346,142.77,142.75,7.72532041]
[1768325138042,3.53105792,142.77,142.75,7.72532041]
[1768325138216,3.53105792,142.77,142.75,0.72011943]
[1768325138421,3.53105792,142.77,142.74,7.7257002]
[1768325139421,16.29105792,142.78,142.75,7.72532784]
[1768325139630,12.76,142.78,142.76,0.72011943]
[1768325139829,3.53105792,142.82,142.77,0.72011943]
[1768325140035,3.53105792,142.84,142.83,3.65181739]
[1768325140319,12.78,142.85,142.83,10.65307446]
[1768325140525,4.22287944,142.87,142.83,11.37319389]
[1768325140728,4.22287944,142.87,142.83,28.87651952]
[1768325141353,9.42360739,142.87,142.83,11.37319389]
[1768325142047,8.73178587,142.87,142.84,0.72011943]
[1768325142350,8.73178587,142.87,142.84,7.7206745]
[1768325144340,0.68689218,142.86,142.84,7.00055507]
[1768325144543,0.69182152,142.88,142.84,7.7206745]
[1768325144838,24.17176625,142.93,142.86,0.72011943]
[1768325144839,8.73178587,142.91,142.86,0.72011943]
[1768325145042,21.49178587,142.92,142.87,0.72011943]
[1768325145415,8.73178587,142.91,142.87,0.72011943]
[1768325146349,21.49178587,142.92,142.88,0.72011943]
[1768325146718,9.4138468,142.91,142.87,6.99896391]
[1768325146945,8.73178587,142.9,142.87,6.99896391]
[1768325147130,8.73178587,142.9,142.88,0.72011943]
[1768325147531,19.95594053,142.92,142.88,0.72011943]
[1768325147839,8.73178587,142.91,142.88,0.72011943]
[1768325149656,21.49178587,142.92,142.89,0.72011943]
[1768325150054,8.73178587,142.91,142.88,0.72011943]
[1768325150260,8.73178587,142.9,142.87,7.7193389]
[1768325150557,8.73178587,142.91,142.88,6.99883791]
[1768325150741,3.57928554,142.91,142.88,6.99883791]
[1768325150931,8.94033634,142.89,142.84,7.72061897]
[1768325151122,8.73178587,142.88,142.85,7.00002842]
[1768325151331,9.4091117,142.88,142.84,7.72081122]
[1768325151525,8.73178587,142.87,142.84,7.72081122]
[1768325151952,8.73178587,142.87,142.85,7.00032132]
[1768325152632,8.73178587,142.87,142.84,7.72087703]
[1768325153028,0.67732583,142.88,142.84,7.72087703]
[1768325153231,8.73178587,142.87,142.84,7.72087703]
[1768325154160,5.08155469,142.87,142.84,7.72087703]
[1768325154564,8.73178587,142.85,142.83,7.00112899]
[1768325155234,8.73178587,142.84,142.8,18.22688579]
[1768325155438,8.73178587,142.84,142.82,7.721886]
[1768325155644,8.73178587,142.84,142.82,0.72011943]
[1768325155869,8.73178587,142.83,142.81,7.72225188]
[1768325156841,8.73178587,142.83,142.81,7.00213245]
[1768325157542,8.73178587,142.83,142.81,7.72225188]
[1768325157756,8.70178587,142.83,142.81,7.72225188]
[1768325157964,8.73178587,142.85,142.82,0.72011943]
[1768325158563,8.73178587,142.86,142.82,0.72011943]
[1768325158766,8.73178587,142.85,142.82,0.72011943]
[1768325159073,8.73178587,142.86,142.82,0.72011943]
[1768325159636,32.49511569,143.09,142.82,0.72011943]
[1768325159637,0.69182152,142.89,142.82,0.72011943]
[1768325159858,8.73178587,142.87,142.82,0.72011943]
[1768325160065,8.73178587,142.87,142.83,7.72144968]
[1768325161067,8.73178587,142.85,142.82,7.00163016]
[1768325161264,8.73178587,142.84,142.82,7.00163016]
[1768325161472,3.52743978,142.85,142.82,7.00163016]
[1768325162762,3.52743978,142.85,142.82,7.72174959]
[1768325163762,13.45182152,142.88,142.83,0.72011943]
[1768325163978,7.68972214,142.9,142.83,0.72011943]
[1768325164147,7.68972214,142.9,142.82,7.00163016]
[1768325164148,0.19888749,142.94,142.86,4.24755921]
[1768325164466,0.68689218,142.91,142.87,0.72011943]
[1768325164664,0.68689218,142.91,142.88,6.99888017]
[1768325164844,3.52743978,142.92,142.89,0.70628901]
[1768325165039,10.52438935,142.92,142.89,0.70628901]
[1768325165446,15.72306584,142.92,142.89,0.70628901]
[1768325165646,8.72611627,142.92,142.89,0.70628901]
[1768325166366,0.21529515,142.92,142.88,7.70516918]
[1768325166571,8.94141142,142.92,142.88,7.70516918]
[1768325166868,7.21236188,142.92,142.88,7.70516918]
[1768325167065,15.93847815,142.92,142.88,7.70516918]
[1768325167449,0.6706486,142.91,142.88,6.99888017]
[1768325168171,15.723183,142.92,142.88,0.70628901]
[1768325168469,8.72611627,142.92,142.88,0.70628901]
[1768325169274,0.6706486,142.91,142.87,6.99937005]
[1768325169988,8.72611627,142.92,142.88,0.70628901]
[1768325171549,15.72322764,142.92,142.88,0.70628901]
[1768325173573,8.72611627,142.91,142.88,0.70628901]
[1768325174876,9.39225687,142.9,142.86,7.70580412]
[1768325175072,8.72611627,142.9,142.86,7.70580412]
[1768325175256,7.21292458,142.91,142.87,7.70549341]
[1768325175257,15.93904085,142.91,142.87,7.70549341]
[1768325175869,8.72611627,142.91,142.88,6.99885737]
[1768325176078,0.18742707,142.91,142.88,6.99885737]
[1768325176377,8.72611627,142.92,142.88,6.99885737]
[1768325176671,8.72611627,142.92,142.89,0.68239826]
[1768325179175,21.48611627,142.93,142.9,0.68239826]
[1768325179355,12.76,142.93,142.9,0.68239826]
[1768325179550,85.50936101,143.0,142.93,0.68239826]
[1768325179882,69.34875636,143.12,142.93,0.68239826]
[1768325179883,9.42951397,142.97,142.93,0.68239826]
[1768325181181,0.7033977,142.93,142.9,6.99776051]
[1768325181380,9.42951397,142.93,142.9,6.99776051]
[1768325181582,8.72611627,142.93,142.9,7.68015877]
[1768325181756,8.72611627,142.93,142.91,0.68239826]
[1768325182574,8.72611627,142.92,142.89,7.68056988]
[1768325184785,8.74937682,142.91,142.88,19.75865161]
[1768325185174,8.72611627,142.91,142.88,20.44104987]
[1768325185360,3.52444938,142.91,142.88,20.44104987]
[1768325185558,3.52444938,142.91,142.89,7.68074903]
[1768325185779,3.52444938,142.92,142.89,7.68074903]
[1768325186764,3.52444938,142.91,142.88,7.68107961]
[1768325188172,0.7033977,142.92,142.91,1.41779459]
[1768325188380,7.69960795,142.94,142.91,1.41779459]
[1768325188567,3.52444938,142.92,142.91,1.41779459]
[1768325188782,3.52444938,142.92,142.89,7.68075553]
[1768325189869,7.69960795,142.94,142.9,0.68239826]
[1768325190075,4.22784708,142.95,142.9,0.68239826]
[1768325190388,4.22784708,142.95,142.91,0.68239826]
[1768325190570,3.52444938,142.96,142.91,0.68239826]